bitfinex/quotes_ETHUSD_20250314
["timestamp","ask_amount","ask_price","bid_price","bid_amount"]
[1741963580795,19.68739,1918.8,1918.7,0.1130888]
[1741963581025,14.4758,1918.8,1918.7,0.1130888]
[1741963581208,19.68739,1918.8,1918.7,0.1130888]
[1741963581600,13.29939,1918.8,1918.7,0.1130888]
[1741963581795,14.4778,1918.8,1918.7,0.1130888]
[1741963581998,13.8138,1918.8,1918.7,0.1130888]
[1741963582198,0.7838,1918.8,1918.7,0.1130888]
[1741963582403,5.99539,1918.8,1918.7,0.1130888]
[1741963582603,1.3338,1918.8,1918.7,0.1130888]
[1741963583320,6.54539,1918.8,1918.7,0.1130888]
[1741963583522,13.811075,1918.8,1918.7,0.1130888]
[1741963583725,20.201075,1918.8,1918.7,0.1130888]
[1741963584302,0.7951,1918.4,1917.8,5.2143]
[1741963584506,0.55,1918.3,1918.0,5.2136]
[1741963584812,0.55,1918.3,1918.1,5.21337]
[1741963585013,5.76305,1918.3,1918.1,0.09942246]
[1741963585336,0.55,1918.2,1917.8,5.2141]
[1741963585499,5.76359,1918.1,1917.7,5.21457]
[1741963585925,0.55,1917.6,1917.1,0.01]
[1741963586226,7.517469,1917.6,1917.3,5.21553]
[1741963586396,6.941,1917.6,1917.3,5.2156]
[1741963586593,6.941,1917.6,1917.3,5.21565]
[1741963586922,6.941,1917.6,1917.5,5.21512]
[1741963587125,6.391,1917.6,1917.5,5.21512]
[1741963587313,0.55,1917.6,1917.5,5.21512]
[1741963587517,5.76449,1917.8,1917.3,5.2155]
[1741963587728,0.55,1917.8,1917.3,5.2155]
[1741963587917,0.55,1917.8,1917.1,0.01]
[1741963587918,1.3462,1917.5,1917.1,0.01]
[1741963588233,1.3462,1917.5,1917.3,5.21554]
[1741963588234,7.7362,1917.5,1917.3,5.21554]
[1741963588743,6.8991,1917.8,1917.3,5.21544]
[1741963588901,6.392,1917.8,1917.7,5.21457]
[1741963590229,5.21399,1918.0,1917.2,8.21588]
[1741963590398,0.55,1917.9,1917.5,5.21486]
[1741963590800,5.76411,1917.9,1917.4,5.21534]
[1741963591047,1.3552,1917.6,1917.3,5.21554]
[1741963591246,7.7482,1917.6,1917.3,5.21554]
[1741963591451,6.393,1917.6,1917.5,5.21512]
[1741963591908,6.64,1918.0,1917.9,5.21403]
[1741963592108,6.393,1918.1,1917.7,5.21457]
[1741963592330,7.11269,1918.1,1917.8,5.2142]
[1741963592542,6.393,1918.1,1917.8,5.21418]
[1741963592706,0.55,1918.0,1917.6,5.21462]
[1741963592902,5.21413,1917.9,1917.5,5.215]
[1741963593110,0.55,1917.7,1917.5,5.21503]
[1741963593707,5.76385,1918.0,1917.6,5.2148]
[1741963593917,2.896041,1918.0,1917.5,5.21486]
[1741963594116,0.55,1918.0,1917.9,5.21393]
[1741963594318,6.09,1918.1,1918.0,5.21376]
[1741963594544,6.09,1918.1,1917.9,5.21393]
[1741963594742,6.09,1918.1,1918.0,5.21376]
[1741963595105,0.8039,1918.2,1918.1,5.21349]
[1741963595544,6.393,1918.3,1918.2,5.21322]
[1741963595918,0.782,1918.5,1918.4,5.21267]
[1741963596120,1.957685,1918.8,1918.6,5.21213]
[1741963596333,0.782,1918.8,1918.6,10.42398]
[1741963596649,5.21242,1918.5,1918.1,5.21337]
[1741963596846,0.782,1918.8,1918.1,5.21334]
[1741963596847,0.55,1918.4,1918.1,5.21334]
[1741963597150,6.393,1918.6,1918.2,5.21307]
[1741963597321,8.074695,1918.6,1917.9,5.21402]
[1741963597654,0.55,1918.5,1917.8,3.0]
[1741963597847,11.60523,1918.6,1918.0,5.21359]
[1741963598049,0.55,1918.5,1918.2,5.2131]
[1741963598210,0.55,1918.3,1917.7,3.0]
[1741963598605,0.8291,1918.4,1918.2,5.21305]
[1741963598840,0.8291,1918.4,1917.7,3.0]
[1741963599056,11.60514,1918.6,1918.3,5.21294]
[1741963599057,6.393,1918.6,1918.3,5.21294]
[1741963599248,0.8285,1918.7,1917.8,8.19220415]
[1741963599451,0.55,1918.6,1918.3,5.21287]
[1741963599810,6.04045,1918.7,1918.0,3.0]
[1741963599811,0.8285,1918.7,1918.6,5.21213]
[1741963600006,0.8285,1919.1,1919.0,5.21104]
[1741963600213,6.9185,1919.3,1919.1,5.21077]
[1741963600422,6.9185,1919.3,1919.0,5.21104]
[1741963600423,0.55,1919.2,1919.0,5.21104]
[1741963600628,6.9185,1919.3,1919.2,5.2105]
[1741963601138,6.392,1919.5,1919.4,5.20996]
[1741963602136,6.392,1919.5,1919.2,5.21048]
[1741963602352,6.392,1919.5,1919.3,5.21018]
[1741963602555,6.09,1919.8,1919.1,5.26282022]
[1741963602738,11.29898,1919.8,1919.4,5.20993]
[1741963603066,0.8321,1920.0,1919.8,5.20869]
[1741963603369,0.8321,1920.0,1919.7,5.20902]
[1741963603577,0.8321,1920.0,1919.6,5.20925]
[1741963603578,6.04047,1920.0,1919.6,5.20925]
[1741963603724,0.604047,1919.9,1919.6,5.20925]
[1741963603929,0.604047,1919.9,1919.6,10.41856]
[1741963604174,0.604047,1919.9,1919.6,10.4184]
[1741963604391,0.8321,1920.0,1919.8,5.2087]
[1741963604659,6.09,1920.2,1919.8,5.2087]
[1741963604660,0.8143,1920.2,1920.1,5.20806]
[1741963604876,6.39,1920.3,1920.2,5.20779]
[1741963605047,6.9043,1920.5,1920.4,5.20724]
[1741963605247,0.8143,1920.5,1920.4,5.20724]
[1741963605575,0.815,1920.9,1920.7,5.20633]
[1741963605737,1.5355,1920.9,1920.7,5.20631]
[1741963605932,0.7205,1920.9,1920.8,5.20616]
[1741963606233,0.7997,1921.2,1920.9,5.20589]
[1741963606437,5.20554,1921.1,1920.6,5.20651]
[1741963606769,5.20594,1920.9,1920.4,5.20698]
[1741963607146,0.55,1920.8,1920.4,10.41409]
[1741963607342,0.55,1920.9,1920.5,5.20671]
[1741963607665,0.575567,1920.9,1920.7,5.20631]
[1741963607882,0.7997,1921.2,1920.9,5.20581]
[1741963608087,0.7997,1921.2,1921.0,5.20544]
[1741963608252,12.479,1921.4,1921.0,5.20543]
[1741963608253,0.7858,1921.4,1921.0,5.20543]
[1741963608452,0.7858,1921.4,1921.1,5.20509]
[1741963608688,0.7858,1921.4,1921.2,5.20506]
[1741963609357,0.7858,1921.4,1921.1,5.20509]
[1741963609571,5.20484,1921.3,1920.9,5.20573]
[1741963609771,0.520484,1921.2,1920.9,5.20576]
[1741963609996,0.55,1921.1,1920.7,5.2063]
[1741963610157,0.55,1921.1,1920.7,10.41261]
[1741963610353,5.20551,1921.1,1920.6,5.20655]
[1741963610572,5.96147,1920.9,1920.5,5.20671]
[1741963610767,0.7555,1920.9,1920.2,5.20778]
[1741963610995,0.7555,1920.9,1920.5,5.20683]
[1741963611180,0.55,1920.8,1920.4,5.20721]
[1741963611353,0.3055,1920.9,1920.6,5.20645]
[1741963611562,0.520551,1921.0,1920.8,5.20601]
[1741963611773,0.520551,1921.0,1920.7,5.20621]
[1741963611966,0.520551,1921.0,1920.5,5.20674]
[1741963612194,5.726311,1921.0,1920.5,10.41359]
[1741963612400,0.5726311,1920.9,1920.6,5.20669]
[1741963612585,0.5726311,1920.9,1920.6,5.20656]
[1741963612787,0.520551,1921.0,1920.6,5.20656]
[1741963612962,5.20607,1920.9,1920.5,5.20696]
[1741963613484,5.20607,1920.9,1920.5,5.20686]
[1741963613666,0.520551,1921.0,1920.6,5.20649]
[1741963613867,0.520551,1921.0,1920.7,5.20625]
[1741963614104,5.726191,1921.0,1920.6,5.20649]
[1741963614271,0.5726191,1920.9,1920.6,5.20649]
[1741963614472,1.3310191,1920.9,1920.6,5.20649]
[1741963614999,0.7584,1920.9,1920.6,10.41308]
[1741963615194,0.7584,1920.9,1920.7,5.20638]
[1741963615409,1.316884,1921.2,1920.9,5.20562]
[1741963615580,6.384,1921.1,1920.9,5.20562]
[1741963615762,6.384,1921.1,1920.3,8.20729]
[1741963615966,6.39406,1921.0,1920.5,5.20675]
[1741963616186,5.2059,1920.9,1920.5,10.41361]
[1741963616475,6.39406,1921.0,1920.6,5.20668]
[1741963616809,1.1884,1921.0,1920.7,10.41254]
[1741963616965,6.384,1921.1,1920.8,5.20602]
[1741963617365,6.384,1921.1,1920.8,10.412]
[1741963617599,6.384,1921.1,1920.9,5.20586]
[1741963617798,6.384,1921.1,1921.0,5.20562]
[1741963618002,6.384,1921.1,1920.9,5.20571]
[1741963618301,6.384,1921.1,1921.0,5.20562]
[1741963618503,0.7964,1921.2,1921.1,5.20535]
[1741963618708,6.09,1921.3,1921.1,5.20535]
[1741963618709,6.383,1921.3,1921.1,5.20535]
[1741963619003,12.22623,1921.3,1920.9,5.20568]
[1741963619206,7.0213,1921.3,1921.0,5.20561]
[1741963619374,6.383,1921.3,1920.8,5.20616]
[1741963619568,6.383,1921.3,1921.1,5.20527]
[1741963619768,6.383,1921.3,1921.1,5.20515]
[1741963620073,0.8166,1921.5,1921.4,5.20453]
[1741963620273,0.8166,1921.5,1921.3,10.40936]
[1741963620579,0.8166,1921.5,1921.0,5.20557]
[1741963620779,0.8166,1921.5,1921.2,5.20501]
[1741963620964,1.418671,1921.5,1921.3,5.20463]
[1741963621170,0.8166,1921.5,1921.2,5.20505]
[1741963621410,10.40927,1921.4,1921.0,5.20546]
[1741963621607,0.8062,1921.8,1921.6,5.20399]
[1741963621791,0.8062,1921.8,1921.7,5.20372]
[1741963621994,6.9153,1922.1,1921.9,10.40597]
[1741963622305,5.20329,1921.9,1921.5,5.20414]
[1741963622490,5.20329,1921.9,1921.3,5.20478]
[1741963622696,5.20328,1921.9,1921.5,5.20417]
[1741963622902,5.2035,1921.8,1921.4,5.20448]
[1741963623107,9.96783,1922.1,1921.3,0.05204327]
[1741963623507,0.8046,1921.7,1921.4,5.20444]
[1741963623706,0.8046,1921.7,1921.3,10.40942]
[1741963623919,0.55,1921.6,1921.1,5.20511]
[1741963624122,6.64,1921.6,1921.2,5.20501]
[1741963624302,0.664,1921.5,1921.1,5.2051]
[1741963624499,5.2049,1921.3,1920.4,5.20709]
[1741963624713,5.2049,1921.3,1920.9,5.20576]
[1741963624899,0.55,1921.1,1920.7,5.20633]
[1741963625102,0.55,1921.1,1920.0,10.10049415]
[1741963625103,5.20562,1921.0,1920.5,5.20683]
[1741963625418,0.520562,1920.9,1920.6,10.4132]
[1741963625620,7.2124,1921.2,1921.1,5.20535]
[1741963625795,7.2124,1921.2,1921.0,5.20549]
[1741963625999,12.50841,1921.5,1921.2,5.20498]
[1741963626000,1.4362,1921.5,1921.2,5.20498]
[1741963626315,1.4362,1921.5,1920.8,3.0]
[1741963626316,6.38,1921.6,1921.3,5.20475]
[1741963626503,0.7717,1921.8,1921.7,5.20372]
[1741963626711,0.7717,1921.8,1921.6,5.20397]
[1741963626912,6.379,1922.0,1921.3,5.20477]
[1741963627087,6.379,1922.0,1921.8,5.20324]
[1741963627290,6.379,1922.0,1921.7,5.20352]
[1741963627490,11.58202,1922.0,1921.6,5.20388]
[1741963627698,5.20344,1921.9,1921.1,3.0]
[1741963627891,5.20333,1921.9,1921.5,5.20415]
[1741963628135,5.20345,1921.8,1921.4,5.20439]
[1741963628314,5.20409,1921.6,1921.2,5.20506]
[1741963628518,5.20409,1921.6,1920.4,5.20719]
[1741963628519,5.20482,1921.3,1920.9,5.20577]
[1741963628717,0.7693,1921.4,1921.1,5.20522]
[1741963629029,1.42142278,1921.4,1921.1,5.20525]
[1741963629229,0.7693,1921.4,1921.2,5.20498]
[1741963629533,6.09,1921.5,1921.2,5.20489]
[1741963629836,11.29436,1921.5,1921.1,5.20532]
[1741963629988,11.29433,1921.5,1920.7,5.20621]
[1741963630188,1.129433,1921.4,1920.9,3.0]
[1741963630438,6.09,1921.5,1921.2,5.20492]
[1741963630605,11.29436,1921.5,1920.5,8.20697]
[1741963630794,11.29436,1921.5,1921.1,5.20516]
[1741963630992,6.09,1921.5,1921.2,5.20491]
[1741963631217,6.09,1921.5,1921.4,5.20453]
[1741963631638,6.09,1921.5,1921.2,5.20504]
[1741963631824,0.7979,1921.6,1921.3,5.20478]
[1741963632030,0.7979,1921.6,1921.3,5.2046]
[1741963632214,2.035866,1921.6,1921.3,10.40923]
[1741963632411,2.035866,1921.6,1921.2,5.20499]
[1741963632626,2.035866,1921.6,1921.3,5.20462]
[1741963632948,0.7979,1921.6,1921.5,5.20426]
[1741963633156,6.09,1921.8,1921.5,5.20405]
[1741963633358,0.55,1921.7,1920.7,1.04726574]
[1741963633658,6.02846,1921.4,1921.0,5.20551]
[1741963633812,6.02846,1921.4,1921.0,5.20544]
[1741963634014,7.151735,1921.4,1921.0,5.20544]
[1741963634224,8.874075,1921.4,1920.8,5.20615]
[1741963634427,8.324075,1921.4,1920.8,5.20603]
[1741963634739,10.41038,1921.2,1920.8,5.20604]
[1741963634913,5.97455,1921.1,1920.8,5.20613]
[1741963635107,0.7691,1921.1,1920.8,10.41211]
[1741963635312,0.7691,1921.1,1920.8,5.20598]
[1741963635514,7.092403,1921.1,1920.7,5.20632]
[1741963635714,7.500275,1921.4,1920.7,5.20632]
[1741963635715,8.288175,1921.4,1920.8,0.05206288]
[1741963635953,5.20521,1921.2,1920.6,3.0]
[1741963636113,5.20513,1921.2,1920.8,5.20613]
[1741963636314,5.75483,1921.3,1920.9,5.20566]
[1741963636573,5.75483,1921.3,1920.8,5.20603]
[1741963636930,5.75483,1921.3,1920.6,5.20667]
[1741963636931,5.20547,1921.1,1920.6,5.20667]
[1741963637117,5.20631,1920.8,1920.4,5.20712]
[1741963637452,5.20631,1920.8,1919.7,22.43299]
[1741963637453,0.8201,1920.5,1920.2,10.41536]
[1741963637633,0.8201,1920.5,1920.3,5.20742]
[1741963637978,11.58436,1920.4,1919.9,5.20857]
[1741963638118,6.09,1920.9,1920.3,5.20736]
[1741963638322,5.8670747,1920.9,1920.5,5.20681]
[1741963638647,0.8201,1920.7,1920.1,3.0]
[1741963638844,0.8201,1920.7,1920.5,5.20688]
[1741963639524,5.75681,1920.6,1920.2,5.20767]
[1741963639853,5.75681,1920.6,1920.2,10.41532]
[1741963640055,1.728335,1920.6,1920.3,5.20741]
[1741963640261,1.178335,1920.6,1920.3,5.20741]
[1741963640421,6.385045,1920.6,1920.3,5.20741]
[1741963640616,6.385045,1920.6,1920.1,5.20802]
[1741963640850,1.178335,1920.6,1920.2,5.20769]
[1741963641164,0.8201,1920.7,1920.4,5.20709]
[1741963641318,0.8201,1920.7,1919.9,5.08864384]
[1741963641518,5.20681,1920.6,1920.2,5.20758]
[1741963641723,5.20726,1920.4,1920.0,5.2081]
[1741963641920,0.814,1920.2,1919.9,5.20844]
[1741963642337,0.814,1920.2,1920.0,5.20814]
[1741963642621,6.377,1920.4,1920.1,5.20803]
[1741963642845,6.377,1920.4,1920.1,5.20806]
[1741963643019,6.377,1920.4,1920.2,5.20768]
[1741963643217,11.58428,1920.4,1920.0,5.20821]
[1741963643416,11.58428,1920.4,1919.7,3.0]
[1741963643417,5.20822,1920.1,1919.7,5.20902]
[1741963643645,5.20822,1920.1,1919.5,5.20952]
[1741963643646,5.75833,1920.0,1919.5,5.20952]
[1741963643820,5.20877,1919.9,1919.5,5.20949]
[1741963644173,5.20877,1919.9,1918.9,6.377]
[1741963644174,0.55,1919.6,1918.9,5.21126]
[1741963644316,7.1378,1919.8,1919.0,5.21104]
[1741963644521,7.1378,1919.8,1919.5,5.20966]
[1741963644751,7.1378,1919.8,1919.4,5.20983]
[1741963644950,7.1378,1919.8,1919.0,5.08864384]
[1741963644951,7.1378,1919.8,1919.5,5.20968]
[1741963645154,7.1388,1919.8,1919.7,5.20914]
[1741963645502,7.1388,1919.8,1919.6,5.20925]
[1741963645682,7.1388,1919.8,1919.5,5.20963]
[1741963645858,7.1388,1919.8,1919.6,5.20937]
[1741963646062,7.1388,1919.8,1919.5,10.41911]
[1741963646388,7.1883,1920.0,1919.7,5.20896]
[1741963646586,5.20888,1919.8,1919.4,5.20974]
[1741963646772,0.8103,1919.6,1919.3,5.21022]
[1741963646970,0.8103,1919.6,1919.4,5.20981]
[1741963647314,1.3603,1919.9,1919.5,5.20968]
[1741963647598,0.8103,1919.9,1919.6,5.20933]
[1741963647804,0.8103,1919.9,1919.5,5.20954]
[1741963647965,0.8103,1919.9,1919.4,5.20991]
[1741963647966,6.01903,1919.9,1919.4,5.20991]
[1741963648302,0.8103,1919.9,1919.4,5.20971]
[1741963648599,0.8103,1919.9,1919.5,5.2096]
[1741963648903,0.8103,1919.9,1919.6,5.2093]
[1741963649401,0.55,1919.8,1919.4,5.20995]
[1741963649569,0.55,1919.8,1919.1,5.21068]
[1741963649769,0.7936,1919.5,1919.1,5.21068]
[1741963649974,7.1716,1919.5,1919.1,10.42131]
[1741963650497,5.21012,1919.4,1919.0,5.21104]
[1741963650715,5.21012,1919.4,1918.9,3.0]
[1741963650716,6.09,1919.4,1919.1,5.21075]
[1741963650865,11.29999,1919.4,1919.0,5.21099]
[1741963651576,6.09,1919.4,1919.0,10.42171]
[1741963651776,6.09,1919.4,1919.1,5.21077]
[1741963651976,6.09,1919.4,1918.5,10.12233536]
[1741963652191,7.08638,1919.4,1919.0,5.21104]
[1741963652364,18.47132,1919.5,1918.7,8.26372104]
[1741963652559,18.47132,1919.5,1919.0,10.42162]
[1741963652759,5.2104,1919.3,1918.9,5.2113]
[1741963653064,6.00495,1919.1,1918.7,5.21184]
[1741963653410,0.794,1919.1,1918.8,5.21132]
[1741963653962,0.794,1919.1,1919.0,5.21104]
[1741963654467,7.2078,1919.4,1919.0,5.21087]
[1741963654703,7.2078,1919.4,1919.1,5.21065]
[1741963654892,7.2078,1919.4,1919.1,10.42126]
[1741963655097,7.2078,1919.4,1918.7,3.0]
[1741963655405,7.2078,1919.4,1919.2,5.21031]
[1741963655705,0.7902,1919.7,1919.4,5.20983]
[1741963655870,5.99953,1919.7,1919.3,5.21018]
[1741963656277,5.99953,1919.7,1919.3,10.42022]
[1741963656579,12.469,1919.8,1919.0,5.21104]
[1741963656776,6.379,1919.8,1919.6,5.20932]
[1741963656980,22.43965,1919.9,1919.6,5.20932]
[1741963657177,0.7671,1920.0,1919.9,5.2086]
[1741963657389,7.1866,1920.3,1920.0,5.20832]
[1741963657600,7.1866,1920.3,1919.8,5.20871]
[1741963657909,5.2079,1920.2,1919.8,5.20871]
[1741963658275,5.2079,1920.2,1919.9,5.20858]
[1741963658501,7.1866,1920.3,1919.5,3.0]
[1741963658707,0.8076,1920.3,1919.8,5.20869]
[1741963658883,0.8076,1920.3,1919.6,3.0]
[1741963658884,5.2082,1920.1,1919.7,5.20913]
[1741963659089,10.41581,1920.2,1919.8,5.20877]
[1741963659768,5.2082,1920.1,1919.7,5.20913]
[1741963660099,0.8083,1919.9,1919.5,5.20967]
[1741963660267,6.01703,1919.9,1919.5,5.20967]
[1741963660602,0.8083,1919.9,1919.6,5.20921]
[1741963660800,0.8083,1919.9,1919.5,5.20969]
[1741963660965,6.09,1920.1,1920.0,5.20833]
[1741963661169,0.8083,1920.3,1919.9,5.20852]
[1741963661369,6.01586,1920.3,1919.9,5.20848]
[1741963661601,11.22357,1920.3,1919.9,5.20844]
[1741963661897,5.20779,1920.2,1919.6,0.520969]
[1741963662215,6.378,1920.1,1919.8,5.20881]
[1741963662510,6.378,1920.1,1920.0,5.20833]
[1741963662917,11.58618,1920.1,1919.6,5.20939]
[1741963663068,5.20865,1919.9,1919.6,8.20939]
[1741963663683,5.20865,1919.9,1919.5,5.20961]
[1741963663925,0.8092,1920.0,1919.7,5.20904]
[1741963664072,0.8092,1920.0,1919.6,5.2093]
[1741963664073,6.01758,1920.0,1919.6,5.2093]
[1741963664268,6.01758,1920.0,1919.6,5.20931]
[1741963664715,0.8092,1920.0,1919.7,5.20904]
[1741963664911,7.1862,1920.0,1919.6,5.20938]
[1741963665067,5.20865,1919.9,1919.5,5.20965]
[1741963665273,5.20865,1919.9,1919.5,5.20951]
[1741963665474,10.41749,1919.9,1919.5,5.20951]
[1741963666003,5.20888,1919.8,1919.5,5.20951]
[1741963666202,5.20888,1919.8,1919.4,5.20996]
[1741963666407,5.20863,1919.9,1919.5,5.20954]
[1741963666408,11.29863,1919.9,1919.5,5.20954]
[1741963666703,0.7769,1919.8,1919.1,8.731864]
[1741963666903,5.98598,1919.8,1919.4,5.20977]
[1741963667090,0.7769,1919.8,1919.5,5.20951]
[1741963667292,0.7769,1919.8,1919.6,5.20935]
[1741963667503,7.1539,1919.8,1919.6,5.20931]
[1741963667708,7.1539,1919.8,1919.6,5.2093]
[1741963668338,7.1539,1919.8,1919.7,5.20914]
[1741963668621,7.1539,1919.8,1919.6,5.20926]
[1741963668784,7.1539,1919.8,1919.5,5.20955]
[1741963669115,7.1539,1919.8,1919.4,10.41976]
[1741963669116,12.36279,1919.8,1919.4,10.41976]
[1741963669342,12.36279,1919.8,1919.3,5.21007]
[1741963669343,7.1539,1919.8,1919.3,5.21007]
[1741963669523,5.2097,1919.5,1919.2,5.21046]
[1741963669823,6.02276,1919.4,1918.9,5.21131]
[1741963670022,12.13623,1919.3,1918.5,10.30437573]
[1741963670227,6.376,1919.3,1918.9,5.21107]
[1741963670385,5.21064,1919.2,1918.8,5.21156]
[1741963670585,5.21064,1919.2,1918.8,5.21142]
[1741963670981,11.58648,1919.3,1918.9,5.21131]
[1741963671213,6.376,1919.3,1918.7,5.26388122]
[1741963671416,6.376,1919.3,1919.0,5.21081]
[1741963671914,0.8128,1919.7,1919.6,5.20941]
[1741963672102,0.8128,1919.7,1919.1,5.09197573]
[1741963672103,0.8128,1919.7,1919.4,5.20985]
[1741963672313,0.8128,1919.7,1919.4,5.730835]
[1741963672519,0.8128,1919.7,1919.4,5.20985]
[1741963672702,0.8128,1919.7,1919.5,5.20967]
[1741963673029,0.8128,1919.7,1919.6,5.20941]
[1741963673336,0.8128,1919.9,1919.7,5.20914]
[1741963673621,5.209,1919.8,1919.4,5.20992]
[1741963673915,5.2095,1919.6,1919.2,5.21044]
[1741963674079,12.39852,1919.5,1919.2,5.21035]
[1741963674280,5.21001,1919.4,1919.1,5.21074]
[1741963674518,5.21001,1919.4,1918.9,5.21129]
[1741963674519,5.21007,1919.4,1918.9,5.21129]
[1741963674815,5.21039,1919.3,1918.9,5.21129]
[1741963675024,0.8128,1919.1,1918.8,5.21157]
[1741963675228,6.02363,1919.1,1918.8,5.21157]
[1741963675523,0.8128,1919.1,1918.8,5.21157]
[1741963675729,6.02367,1919.1,1918.7,10.42357]
[1741963675945,6.02367,1919.1,1918.5,5.21227]
[1741963675946,5.21144,1918.9,1918.5,5.21227]
[1741963676153,0.7898,1918.6,1918.3,5.21277]
[1741963676442,6.00195,1918.6,1918.2,5.21318]
[1741963676928,11.21429,1918.6,1918.2,5.21318]
[1741963677145,0.7898,1918.6,1918.4,5.21249]
[1741963677431,11.58843,1918.5,1918.1,5.2133]
[1741963677932,5.21295,1918.3,1917.9,10.42772]
[1741963678248,17.67848,1918.5,1918.2,5.21321]
[1741963678444,12.466,1918.5,1918.3,5.21294]
[1741963678656,6.376,1918.5,1918.3,5.21294]
[1741963678938,6.09,1918.7,1918.5,5.21224]
[1741963679139,12.466,1918.7,1918.5,5.21224]
[1741963679301,6.376,1918.7,1918.6,5.21213]
[1741963679501,6.376,1918.7,1918.5,5.21224]
[1741963679701,6.376,1918.7,1918.6,5.21213]
[1741963680307,6.376,1918.7,1918.6,6.254563]
[1741963680498,6.376,1918.7,1918.5,5.2122]
[1741963680704,6.376,1918.7,1918.6,5.21213]
[1741963681007,7.1686,1919.1,1918.8,5.21143]
[1741963681723,6.376,1919.3,1919.1,5.21061]
[1741963682044,6.376,1919.3,1919.2,5.2105]
[1741963682200,0.7926,1919.4,1919.2,5.21023]
[1741963682537,0.7926,1919.4,1919.1,5.21075]
[1741963682738,0.7926,1919.4,1919.2,10.42078]
[1741963683054,23.611,1919.5,1919.4,5.20996]
[1741963683055,6.376,1919.5,1919.4,5.20996]
[1741963685261,6.376,1919.5,1919.3,5.2102]
[1741963685444,6.376,1919.5,1919.3,10.42023]
[1741963685763,0.8247,1919.4,1919.1,5.2105]
[1741963685958,0.8247,1919.4,1919.0,5.21097]
[1741963686161,5.21034,1919.3,1918.9,10.42241]
[1741963686664,5.21034,1919.3,1919.0,5.21103]
[1741963687259,5.21034,1919.3,1918.9,5.21118]
[1741963687560,5.21034,1919.3,1918.9,10.42233]
[1741963687761,0.8247,1919.4,1919.1,5.21067]
[1741963687959,0.8247,1919.4,1919.2,5.21035]
[1741963688167,6.376,1919.5,1919.3,5.21023]
[1741963688319,6.09,1919.6,1919.4,5.20986]
[1741963688519,6.09,1919.6,1919.5,5.20969]
[1741963688958,5.20874,1919.9,1919.4,5.20992]
[1741963689165,10.41753,1919.9,1919.5,5.20963]
[1741963689460,6.09,1920.0,1919.0,10.12191466]
[1741963689461,11.29835,1920.0,1919.6,5.2092]
[1741963689662,6.09,1920.0,1919.6,5.2092]
[1741963689861,6.09,1920.0,1919.7,5.20903]
[1741963690034,12.36566,1920.1,1919.8,5.20882]
[1741963690035,6.8726,1920.1,1919.8,5.20882]
[1741963690358,10.11681466,1921.0,1920.0,5.20821]
[1741963690359,0.7787,1920.4,1920.0,5.20821]
[1741963690565,5.20779,1920.2,1919.8,5.20878]
[1741963691061,12.464,1920.5,1919.3,8.93777754]
[1741963691062,0.7787,1919.9,1919.4,5.20992]
[1741963691260,0.7787,1919.9,1919.4,0.0520925]
[1741963691439,0.7787,1919.9,1919.6,10.41843]
[1741963691634,0.7787,1919.9,1919.7,5.2089]
[1741963692027,0.7787,1919.9,1919.7,10.41795]
[1741963692229,0.7787,1919.9,1919.7,5.2089]
[1741963692428,0.7787,1919.9,1919.7,10.41794]
[1741963692761,6.374,1920.0,1919.9,5.2086]
[1741963693148,11.29726,1920.4,1920.3,5.20751]
[1741963693149,6.9176,1920.4,1920.3,5.20751]
[1741963693350,5.20655,1920.7,1920.3,5.20751]
[1741963693569,7.1313,1920.6,1920.3,5.20751]
[1741963693935,12.33801,1920.6,1920.3,5.20751]
[1741963694129,7.1313,1920.6,1920.0,5.20831]
[1741963694440,0.7583,1920.6,1920.5,5.20697]
[1741963694640,6.09,1920.8,1920.6,5.20651]
[1741963695028,6.372,1921.0,1920.5,5.2069]
[1741963695228,1.3232,1921.1,1920.8,5.20615]
[1741963695424,6.52858,1921.1,1920.6,5.20664]
[1741963695679,5.20565,1921.0,1920.6,5.20664]
[1741963695963,7.818718,1921.1,1920.7,5.20642]
[1741963696265,2.613258,1921.1,1920.8,5.20612]
[1741963696467,1.3232,1921.1,1920.9,5.20583]
[1741963696764,0.55,1921.1,1920.9,5.20575]
[1741963697074,0.55,1921.1,1921.0,5.20562]
[1741963697976,0.55,1921.1,1921.0,5.25766552]
[1741963698190,1e-05,1921.1,1921.0,5.25766552]
[1741963698478,1e-05,1921.1,1921.0,6.74307102]
[1741963700376,1e-05,1921.1,1921.0,5.20562]
[1741963700742,1e-05,1921.1,1921.0,5.25767137]
[1741963700946,1e-05,1921.1,1921.0,5.20562]
[1741963703467,1e-05,1921.1,1921.0,5.25766991]
[1741963703679,1e-05,1921.1,1921.0,5.20562]
[1741963707592,1e-05,1921.1,1921.0,10.28846493]
[1741963707775,1e-05,1921.1,1921.0,10.34051225]
[1741963708086,1e-05,1921.1,1921.0,13.34051225]
[1741963708298,1e-05,1921.1,1921.0,13.28846493]
[1741963708957,1e-05,1921.1,1921.0,5.20562]
[1741963709461,1e-05,1921.1,1920.8,5.206]
[1741963709662,1e-05,1921.1,1920.9,5.20571]
[1741963710482,1e-05,1921.1,1921.0,5.20562]
[1741963713219,1e-05,1921.2,1921.1,5.20535]